lending/lending_fUSD_20250913
["ID","MTS","AMOUNT","RATE_DAILY","PERIOD"]
[385343598,1757790646511,-182.99411,0.00027297,7]
[385343600,1757790646521,-182.99411,0.00027297,7]
[385343603,1757790646530,-182.99411,0.00027297,7]
[385343605,1757790646540,-151.0,0.00027297,7]
[385343607,1757790646549,-488.41647022,0.00027297,2]
[385343609,1757790646558,-151.0,0.00027297,7]
[385343611,1757790646568,-1631.03118485,0.00027297,2]
[385343613,1757790646578,-238.151136,0.00027297,7]
[385343615,1757790646588,-185.103623,0.00027297,7]
[385343617,1757790646597,-185.103623,0.00027297,7]
[385343619,1757790646606,-185.103623,0.00027297,7]
[385343621,1757790646616,-185.103623,0.00027297,7]
[385343623,1757790646624,-197.055062,0.00027297,7]
[385343625,1757790646633,-151.0,0.00027297,7]
[385343627,1757790646642,-150.0,0.00027298,7]
[385343629,1757790646651,-195.63804642,0.00027298,7]
[385343631,1757790646661,-150.0,0.00027298,7]
[385343633,1757790646671,-160.0,0.000273,7]
[385343634,1757790646680,-212.99211257,0.000273,7]
[385343637,1757790646689,-515.60081738,0.000273,7]
[385343639,1757790646699,-200.0,0.000273,2]
[385343641,1757790646708,-160.0,0.000273,7]
[385343643,1757790646718,-151.0,0.00027301,7]
[385343645,1757790646727,-151.0,0.00027301,7]
[385343647,1757790646736,-151.0,0.00027301,7]
[385343649,1757790646745,-151.0,0.00027301,7]
[385343651,1757790646754,-151.0,0.00027301,7]
[385343653,1757790646764,-151.0,0.00027301,7]
[385343655,1757790646773,-16594.3585535,0.00027305,2]
[385343657,1757790646782,-22908.1429357,0.00027305,2]
[385343659,1757790646791,-16594.3585535,0.00027306,2]
[385343661,1757790646800,-151.0,0.00027307,7]
[385343663,1757790646810,-301.084257,0.00027307,7]
[385343665,1757790646819,-151.0,0.00027307,7]
[385343667,1757790646828,-160.209909,0.00027307,7]
[385343668,1757790646837,-151.0,0.00027307,7]
[385343670,1757790646846,-156.221204,0.00027307,7]
[385343672,1757790646856,-151.0,0.00027307,7]
[385343675,1757790646866,-151.0,0.00027307,7]
[385343677,1757790646876,-507.75685126,0.00027307,2]
[385343679,1757790646885,-153.301522,0.00027307,7]
[385343681,1757790646894,-160.0,0.0002731,7]
[385343683,1757790646904,-212.99211257,0.0002731,7]
[385343685,1757790646914,-16594.3585535,0.00027312,2]
[385343687,1757790646923,-22908.1429357,0.00027312,2]
[385343689,1757790646932,-152.532054,0.00027312,7]
[385343691,1757790646941,-185.103623,0.00027312,7]
[385343693,1757790646951,-185.103623,0.00027312,7]
[385343695,1757790646961,-185.103623,0.00027312,7]
[385343697,1757790646970,-185.103623,0.00027312,7]
[385343699,1757790646982,-151.0,0.00027315,7]
[385343701,1757790646991,-151.0,0.00027315,7]
[385343703,1757790647001,-151.0,0.00027315,7]
[385343705,1757790647010,-151.0,0.00027315,7]
[385343707,1757790647019,-1572.382061,0.00027315,7]
[385343709,1757790647029,-151.0,0.00027315,7]
[385343711,1757790647038,-1572.382061,0.00027315,7]
[385343713,1757790647046,-151.0,0.00027315,7]
[385343714,1757790647061,-1572.382061,0.00027315,7]
[385343717,1757790647071,-1572.382061,0.00027315,7]
[385343718,1757790647081,-402.159714,0.00027315,7]
[385343720,1757790647090,-402.159714,0.00027315,7]
[385343722,1757790647099,-434.379976,0.00027315,7]
[385343724,1757790647109,-402.159714,0.00027315,7]
[385343726,1757790647118,-434.379976,0.00027315,7]
[385343728,1757790647128,-402.159714,0.00027315,7]
[385343730,1757790647137,-434.379976,0.00027315,7]
[385343732,1757790647146,-434.379976,0.00027315,7]
[385343734,1757790647155,-560.95302,0.00027315,7]
[385343736,1757790647165,-502.195964,0.00027315,7]
[385343738,1757790647174,-560.95302,0.00027315,7]
[385343740,1757790647183,-502.195964,0.00027315,7]
[385343742,1757790647192,-560.95302,0.00027315,7]
[385343744,1757790647201,-502.195964,0.00027315,7]
[385343746,1757790647210,-560.95302,0.00027315,7]
[385343748,1757790647220,-502.195964,0.00027315,7]
[385343750,1757790647229,-151.0,0.00027315,7]
[385343752,1757790647238,-872.104585,0.00027315,7]
[385343754,1757790647247,-151.0,0.00027315,7]
[385343756,1757790647255,-872.104585,0.00027315,7]
[385343758,1757790647264,-151.0,0.00027315,7]
[385343760,1757790647274,-872.104585,0.00027315,7]
[385343762,1757790647283,-872.104585,0.00027315,7]
[385343764,1757790647292,-151.0,0.00027315,7]
[385343766,1757790647301,-256.98403,0.00027315,7]
[385343768,1757790647310,-162.80936,0.00027315,7]
[385343770,1757790647320,-307.587075,0.00027315,7]
[385343772,1757790647330,-162.80936,0.00027315,7]
[385343774,1757790647339,-307.587075,0.00027315,7]
[385343775,1757790647348,-307.587075,0.00027315,7]
[385343776,1757790647358,-151.0,0.00027315,7]
[385343777,1757790647367,-162.80936,0.00027315,7]
[385343778,1757790647377,-307.587075,0.00027315,7]
[385343779,1757790647386,-162.80936,0.00027315,7]
[385343780,1757790647395,-1588.728436,0.00027315,7]
[385343781,1757790647405,-207.664169,0.00027315,7]
[385343782,1757790647416,-1588.728436,0.00027315,7]
[385343783,1757790647426,-1588.728436,0.00027315,7]
[385343784,1757790647436,-1588.728436,0.00027315,7]
[385343785,1757790647445,-195.927416,0.00027315,7]
[385343786,1757790647455,-195.927416,0.00027315,7]
[385343787,1757790647465,-195.927416,0.00027315,7]
[385343788,1757790647475,-195.927416,0.00027315,7]
[385343789,1757790647485,-151.0,0.00027315,7]
[385343790,1757790647497,-151.0,0.00027315,7]
[385343792,1757790647508,-151.0,0.00027315,7]
[385343794,1757790647517,-151.0,0.00027315,7]
[385343796,1757790647526,-151.0,0.00027315,7]
[385343798,1757790647535,-151.0,0.00027315,7]
[385343800,1757790647544,-151.0,0.00027315,7]
[385343801,1757790647553,-247.430618,0.00027315,7]
[385343803,1757790647562,-268.344712,0.00027315,7]
[385343805,1757790647572,-268.344712,0.00027315,7]
[385343807,1757790647582,-268.344712,0.00027315,7]
[385343809,1757790647591,-268.344712,0.00027315,7]
[385343811,1757790647600,-151.0,0.00027315,7]
[385343813,1757790647609,-185.04949,0.00027315,7]
[385343815,1757790647618,-185.04949,0.00027315,7]
[385343817,1757790647627,-185.04949,0.00027315,7]
[385343819,1757790647637,-185.04949,0.00027315,7]
[385343821,1757790647646,-151.0,0.00027315,7]
[385343823,1757790647655,-151.0,0.00027315,7]
[385343825,1757790647664,-151.0,0.00027315,7]
[385343827,1757790647674,-151.0,0.00027315,7]
[385343830,1757790647684,-151.0,0.00027315,7]
[385343832,1757790647694,-182.99411,0.00027315,7]
[385343833,1757790647703,-182.99411,0.00027315,7]
[385343835,1757790647713,-182.99411,0.00027315,7]
[385343837,1757790647722,-182.99411,0.00027315,7]
[385343839,1757790647732,-151.0,0.00027315,7]
[385343842,1757790647742,-273.010096,0.00027315,7]
[385343843,1757790647751,-212.05621273,0.00027315,4]
[385343846,1757790647763,-150.0,0.00027315,4]
[385343848,1757790647772,-226.59804353,0.00027315,4]
[385343850,1757790647782,-241.43164204,0.00027315,4]
[385343851,1757790647791,-285.52399231,0.00027315,4]
[385343853,1757790647800,-158.76669661,0.00027315,4]
[385343855,1757790647809,-180.24786198,0.00027315,4]
[385343857,1757790647818,-276.95742598,0.00027315,4]
[385343859,1757790647828,-16594.3585535,0.00027315,2]
[385343861,1757790647838,-22908.1429357,0.00027315,2]
[385343863,1757790647848,-16594.3585535,0.00027315,2]
[385343865,1757790647857,-22908.1429357,0.00027315,2]
[385343867,1757790647866,-245.235236,0.00027316,7]
[385343869,1757790647875,-151.0,0.00027316,7]
[385343871,1757790647884,-151.0,0.00027316,7]
[385343873,1757790647893,-151.0,0.00027316,7]
[385343875,1757790647902,-151.0,0.00027316,7]
[385343877,1757790647911,-151.0,0.00027316,7]
[385343879,1757790647920,-151.0,0.00027316,7]
[385343881,1757790647930,-151.0,0.00027316,7]
[385343883,1757790647938,-151.0,0.00027316,7]
[385343885,1757790647947,-151.0,0.00027316,7]
[385343887,1757790647956,-222.967196,0.00027316,7]
[385343889,1757790647966,-153.489517,0.00027316,7]
[385343891,1757790647975,-155.668302,0.00027316,7]
[385343893,1757790647984,-151.0,0.00027316,7]
[385343895,1757790647994,-151.0,0.00027316,7]
[385343897,1757790648003,-151.0,0.00027316,7]
[385343899,1757790648012,-252.597001,0.00027316,7]
[385343901,1757790648021,-151.0,0.00027316,7]
[385343903,1757790648030,-226.397433,0.00027316,7]
[385343905,1757790648039,-151.0,0.00027316,7]
[385343907,1757790648049,-151.0,0.00027316,7]
[385343909,1757790648058,-151.0,0.00027316,7]
[385343911,1757790648067,-269.370682,0.00027316,7]
[385343913,1757790648077,-287.078547,0.00027316,7]
[385343915,1757790648087,-151.0,0.00027316,7]
[385343917,1757790648097,-269.370682,0.00027316,7]
[385343920,1757790648106,-269.370682,0.00027316,7]
[385343922,1757790648116,-269.370682,0.00027316,7]
[385343923,1757790648125,-151.0,0.00027316,7]
[385343926,1757790648135,-151.0,0.00027316,7]
[385343928,1757790648154,-151.0,0.00027316,7]
[385343930,1757790648163,-151.0,0.00027316,7]
[385343932,1757790648173,-219.630991,0.00027316,7]
[385343934,1757790648183,-151.0,0.00027316,7]
[385343936,1757790648191,-151.0,0.00027316,7]
[385343938,1757790648201,-151.0,0.00027316,7]
[385343940,1757790648210,-191.356545,0.00027316,7]
[385343942,1757790648220,-185.103623,0.00027316,7]
[385343944,1757790648229,-185.103623,0.00027316,7]
[385343946,1757790648239,-185.103623,0.00027316,7]
[385343948,1757790648248,-185.103616,0.00027316,7]
[385343950,1757790648258,-16594.3585535,0.00027316,2]
[385343952,1757790648267,-151.0,0.00027322,7]
[385343954,1757790648277,-151.0,0.00027322,7]
[385343956,1757790648286,-151.0,0.00027322,7]
[385343958,1757790648295,-1572.382061,0.00027322,7]
[385343960,1757790648305,-151.0,0.00027322,7]
[385343962,1757790648314,-1572.382061,0.00027322,7]
[385343964,1757790648324,-151.0,0.00027322,7]
[385343966,1757790648335,-1572.382061,0.00027322,7]
[385343968,1757790648344,-1572.382061,0.00027322,7]
[385343970,1757790648353,-402.159714,0.00027322,7]
[385343971,1757790648363,-402.159714,0.00027322,7]
[385343974,1757790648372,-434.379976,0.00027322,7]
[385343976,1757790648383,-402.159714,0.00027322,7]
[385343977,1757790648392,-434.379976,0.00027322,7]
[385343979,1757790648402,-402.159714,0.00027322,7]
[385343982,1757790648412,-434.379976,0.00027322,7]
[385343984,1757790648425,-434.379976,0.00027322,7]
[385343986,1757790648434,-560.95302,0.00027322,7]
[385343988,1757790648444,-502.195964,0.00027322,7]
[385343990,1757790648454,-560.95302,0.00027322,7]
[385343992,1757790648463,-502.195964,0.00027322,7]
[385343994,1757790648473,-560.95302,0.00027322,7]
[385343996,1757790648482,-502.195964,0.00027322,7]
[385343997,1757790648492,-560.95302,0.00027322,7]
[385343999,1757790648503,-502.195964,0.00027322,7]
[385344002,1757790648513,-195.256837,0.00027322,7]
[385344004,1757790648523,-872.104585,0.00027322,7]
[385344005,1757790648535,-151.0,0.00027322,7]
[385344007,1757790648546,-872.104585,0.00027322,7]
[385344009,1757790648557,-872.104585,0.00027322,7]
[385344011,1757790648567,-872.104585,0.00027322,7]
[385344013,1757790648577,-151.0,0.00027322,7]
[385344015,1757790648589,-162.80936,0.00027322,7]
[385344017,1757790648599,-307.587075,0.00027322,7]
[385344019,1757790648609,-307.587075,0.00027322,7]
[385344021,1757790648618,-162.80936,0.00027322,7]
[385344023,1757790648629,-307.587075,0.00027322,7]
[385344025,1757790648639,-189.186382,0.00027322,7]
[385344027,1757790648648,-162.80936,0.00027322,7]
[385344029,1757790648658,-307.587075,0.00027322,7]
[385344031,1757790648669,-162.80936,0.00027322,7]
[385344033,1757790648678,-1588.728436,0.00027322,7]
[385344035,1757790648689,-1588.728436,0.00027322,7]
[385344037,1757790648698,-1588.728436,0.00027322,7]
[385344039,1757790648707,-1588.728436,0.00027322,7]
[385344041,1757790648716,-195.927416,0.00027322,7]
[385344043,1757790648728,-195.927416,0.00027322,7]
[385344045,1757790648737,-195.927416,0.00027322,7]
[385344047,1757790648747,-195.927416,0.00027322,7]
[385344049,1757790648756,-151.0,0.00027322,7]
[385344052,1757790648766,-151.0,0.00027322,7]
[385344054,1757790648775,-151.0,0.00027322,7]
[385344055,1757790648785,-1314.28529308,0.00027323,2]
[385344057,1757790648794,-22908.1429357,0.00027323,2]
[385344059,1757790648804,-16594.3585535,0.00027324,2]
[385344061,1757790648813,-151.0,0.00027325,7]
[385344063,1757790648823,-151.0,0.00027325,7]
[385344065,1757790648833,-202.279369,0.00027325,7]
[385344067,1757790648842,-151.0,0.00027325,7]
[385344069,1757790648852,-151.0,0.00027325,7]
[385344071,1757790648863,-151.0,0.00027325,7]
[385344073,1757790648872,-151.0,0.00027325,7]
[385344075,1757790648881,-151.0,0.00027325,7]
[385344077,1757790648890,-151.0,0.00027325,7]
[385344080,1757790648900,-151.0,0.00027325,7]
[385344082,1757790648910,-151.0,0.00027325,7]
[385344083,1757790648919,-268.344712,0.00027325,7]
[385344085,1757790648928,-268.344712,0.00027325,7]
[385344087,1757790648938,-268.344712,0.00027325,7]
[385344090,1757790648947,-268.344712,0.00027325,7]
[385344091,1757790648957,-151.0,0.00027325,7]
[385344093,1757790648966,-185.04949,0.00027325,7]
[385344095,1757790648976,-185.04949,0.00027325,7]
[385344097,1757790648985,-185.04949,0.00027325,7]
[385344099,1757790648994,-185.04949,0.00027325,7]
[385344101,1757790649004,-151.0,0.00027325,7]
[385344103,1757790649013,-151.0,0.00027325,7]
[385344105,1757790649023,-151.0,0.00027325,7]
[385344107,1757790649033,-151.0,0.00027325,7]
[385344128,1757790649043,-151.0,0.00027325,7]
[385344130,1757790649241,-151.0,0.00027325,7]
[385344133,1757790649251,-151.0,0.00027325,7]
[385344134,1757790649261,-151.0,0.00027325,7]
[385344136,1757790649271,-151.0,0.00027325,7]
[385344139,1757790649281,-269.370682,0.00027325,7]
[385344140,1757790649291,-151.0,0.00027325,7]
[385344142,1757790649300,-269.370682,0.00027325,7]
[385344144,1757790649311,-269.370682,0.00027325,7]
[385344146,1757790649320,-269.370682,0.00027325,7]
[385344149,1757790649329,-151.0,0.00027325,7]
[385344151,1757790649340,-151.0,0.00027325,7]
[385344153,1757790649351,-151.0,0.00027325,7]
[385344154,1757790649360,-151.0,0.00027325,7]
[385344156,1757790649369,-151.0,0.00027325,7]
[385344158,1757790649380,-151.0,0.00027325,7]
[385344160,1757790649389,-151.0,0.00027325,7]
[385344162,1757790649398,-182.99411,0.00027325,7]
[385344164,1757790649408,-182.99411,0.00027325,7]
[385344166,1757790649422,-182.99411,0.00027325,7]
[385344169,1757790649432,-182.99411,0.00027325,7]
[385344171,1757790649441,-151.0,0.00027325,7]
[385344173,1757790649451,-33188.717107,0.00027326,2]
[385344175,1757790649462,-22908.1429357,0.00027326,2]
[385344177,1757790649471,-370.36652495,0.00027326,2]
[385344179,1757790649481,-16594.3585535,0.00027326,2]
[385344181,1757790649490,-22908.1429357,0.00027326,2]
[385344183,1757790649500,-195.497183,0.00027326,7]
[385344185,1757790649510,-151.0,0.00027326,7]
[385344187,1757790649519,-151.0,0.00027326,7]
[385344189,1757790649528,-268.344712,0.00027326,7]
[385344191,1757790649538,-268.344712,0.00027326,7]
[385344193,1757790649547,-268.344712,0.00027326,7]
[385344195,1757790649557,-268.344712,0.00027326,7]
[385344197,1757790649566,-162.160668,0.00027326,7]
[385344199,1757790649575,-185.04949,0.00027326,7]
[385344201,1757790649586,-185.04949,0.00027326,7]
[385344203,1757790649595,-185.04949,0.00027326,7]
[385344205,1757790649605,-185.04949,0.00027326,7]
[385344207,1757790649614,-282.847256,0.00027326,7]
[385344209,1757790649623,-151.0,0.00027326,7]
[385344211,1757790649632,-182.99411,0.00027326,7]
[385344213,1757790649642,-182.99411,0.00027326,7]
[385344215,1757790649650,-182.99411,0.00027326,7]
[385344217,1757790649660,-182.994118,0.00027326,7]
[385344219,1757790649669,-151.0,0.00027326,7]
[385344221,1757790649678,-151.0,0.00027329,7]
[385344223,1757790649690,-153.784639,0.00027329,7]
[385344225,1757790649699,-151.0,0.00027329,7]
[385344227,1757790649708,-151.0,0.00027329,7]
[385344229,1757790649717,-872.104585,0.00027333,7]
[385344231,1757790649726,-151.0,0.00027333,7]
[385344233,1757790649735,-872.104585,0.00027333,7]
[385344235,1757790649744,-872.104585,0.00027333,7]
[385344237,1757790649753,-872.104585,0.00027333,7]
[385344239,1757790649762,-151.0,0.00027333,7]
[385344241,1757790649772,-162.80936,0.00027333,7]
[385344243,1757790649781,-307.587075,0.00027333,7]
[385344245,1757790649790,-307.587075,0.00027333,7]
[385344247,1757790649800,-162.80936,0.00027333,7]
[385344249,1757790649809,-307.587075,0.00027333,7]
[385344251,1757790649818,-162.80936,0.00027333,7]
[385344253,1757790649827,-307.587075,0.00027333,7]
[385344255,1757790649837,-162.80936,0.00027333,7]
[385344257,1757790649847,-1588.728436,0.00027333,7]
[385344259,1757790649856,-1588.728436,0.00027333,7]
[385344261,1757790649865,-1588.728436,0.00027333,7]
[385344263,1757790649875,-1588.728436,0.00027333,7]
[385344265,1757790649884,-195.927416,0.00027333,7]
[385344267,1757790649893,-195.927416,0.00027333,7]
[385344269,1757790649902,-195.927416,0.00027333,7]
[385344271,1757790649911,-195.927416,0.00027333,7]
[385344273,1757790649921,-151.0,0.00027333,7]
[385344275,1757790649929,-238.975383,0.00027333,7]
[385344277,1757790649938,-247.495802,0.00027333,7]
[385344279,1757790649947,-151.0,0.00027334,7]
[385344281,1757790649956,-151.0,0.00027334,7]
[385344283,1757790649965,-151.0,0.00027334,7]
[385344285,1757790649975,-151.0,0.00027334,7]
[385344287,1757790649984,-151.0,0.00027334,7]
[385344289,1757790649993,-151.0,0.00027334,7]
[385344291,1757790650003,-151.0,0.00027334,7]
[385344293,1757790650012,-151.0,0.00027334,7]
[385344295,1757790650021,-269.370682,0.00027334,7]
[385344297,1757790650031,-151.0,0.00027334,7]
[385344299,1757790650041,-269.370682,0.00027334,7]
[385344301,1757790650050,-269.370682,0.00027334,7]
[385344302,1757790650059,-269.370691,0.00027334,7]
[385344304,1757790650068,-151.0,0.00027334,7]
[385344306,1757790650077,-151.0,0.00027334,7]
[385344308,1757790650087,-151.0,0.00027334,7]
[385344309,1757790650100,-151.0,0.00027334,7]
[385344310,1757790650109,-151.0,0.00027334,7]
[385344311,1757790650118,-1000.0,0.00027335,2]
[385344312,1757790650127,-151.0,0.00027335,7]
[385344313,1757790650136,-151.0,0.00027335,7]
[385344314,1757790650146,-151.0,0.00027335,7]
[385344315,1757790650155,-1572.382061,0.00027335,7]
[385344316,1757790650165,-151.0,0.00027335,7]
[385344317,1757790650174,-1572.382061,0.00027335,7]
[385344318,1757790650183,-151.0,0.00027335,7]
[385344319,1757790650193,-1572.382061,0.00027335,7]
[385344320,1757790650201,-1572.382061,0.00027335,7]
[385344322,1757790650211,-402.159714,0.00027335,7]
[385344324,1757790650220,-402.159714,0.00027335,7]
[385344326,1757790650229,-434.379976,0.00027335,7]
[385344328,1757790650239,-402.159714,0.00027335,7]
[385344330,1757790650247,-434.379976,0.00027335,7]
[385344332,1757790650257,-402.159714,0.00027335,7]
[385344334,1757790650266,-434.379976,0.00027335,7]
[385344336,1757790650275,-434.379976,0.00027335,7]
[385344338,1757790650283,-560.95302,0.00027335,7]
[385344340,1757790650293,-502.195964,0.00027335,7]
[385344342,1757790650302,-560.95302,0.00027335,7]
[385344344,1757790650311,-502.195964,0.00027335,7]
[385344346,1757790650320,-560.95302,0.00027335,7]
[385344348,1757790650329,-502.195964,0.00027335,7]
[385344350,1757790650339,-560.95302,0.00027335,7]
[385344352,1757790650348,-502.195964,0.00027335,7]
[385344354,1757790650358,-49783.0756605,0.00027336,2]
[385344356,1757790650373,-13183.94866129,0.00027336,2]
[385344361,1757790650409,-542.843,0.00027336,2]
[385344363,1757790650424,-357.810555,0.00027336,2]
[385344365,1757790650435,-387.34840818,0.00027336,2]
[385344367,1757790650446,-705.2,0.00027336,2]
[385344369,1757790650457,-1046.34,0.00027336,2]
[385344459,1757790651302,-29592.79524703,0.00027336,2]
[385344461,1757790651311,-151.0,0.00027336,7]
[385344463,1757790651321,-151.0,0.00027336,7]
[385344465,1757790651330,-151.0,0.00027336,7]
[385344467,1757790651339,-151.418959,0.00027336,7]
[385344469,1757790651349,-151.0,0.00027336,7]
[385344471,1757790651358,-151.0,0.00027336,7]
[385344473,1757790651367,-220.468926,0.00027336,7]
[385344475,1757790651376,-151.0,0.00027336,7]
[385344477,1757790651385,-151.0,0.00027336,7]
[385344479,1757790651394,-151.0,0.00027336,7]
[385344481,1757790651403,-151.0,0.00027336,7]
[385344483,1757790651414,-151.0,0.00027336,7]
[385344485,1757790651426,-281.71748,0.00027336,7]
[385344487,1757790651435,-1572.382061,0.00027336,7]
[385344489,1757790651444,-151.0,0.00027336,7]
[385344491,1757790651453,-1572.382061,0.00027336,7]
[385344493,1757790651463,-1572.382061,0.00027336,7]
[385344495,1757790651473,-1572.382059,0.00027336,7]
[385344497,1757790651483,-402.159714,0.00027336,7]
[385344499,1757790651493,-402.159714,0.00027336,7]
[385344501,1757790651503,-434.379976,0.00027336,7]
[385344503,1757790651513,-402.159714,0.00027336,7]
[385344505,1757790651523,-434.379976,0.00027336,7]
[385344507,1757790651532,-402.159715,0.00027336,7]
[385344509,1757790651542,-434.379976,0.00027336,7]
[385344511,1757790651551,-434.379985,0.00027336,7]
[385344513,1757790651560,-560.95302,0.00027336,7]
[385344515,1757790651570,-502.195964,0.00027336,7]
[385344517,1757790651579,-560.95302,0.00027336,7]
[385344519,1757790651589,-502.195964,0.00027336,7]
[385344521,1757790651599,-560.95302,0.00027336,7]
[385344523,1757790651609,-502.195964,0.00027336,7]
[385344525,1757790651618,-560.953014,0.00027336,7]
[385344527,1757790651627,-502.195971,0.00027336,7]
[385344529,1757790651638,-872.104585,0.00027336,7]
[385344531,1757790651648,-872.104585,0.00027336,7]
[385344533,1757790651657,-872.104585,0.00027336,7]
[385344554,1757790651666,-872.104588,0.00027336,7]
[385344556,1757790651852,-151.0,0.00027336,7]
[385344558,1757790651861,-162.80936,0.00027336,7]
[385344561,1757790651871,-307.587075,0.00027336,7]
[385344563,1757790651880,-307.587075,0.00027336,7]
[385344565,1757790651890,-162.80936,0.00027336,7]
[385344566,1757790651898,-307.587075,0.00027336,7]
[385344568,1757790651907,-162.80936,0.00027336,7]
[385344570,1757790651917,-307.587066,0.00027336,7]
[385344572,1757790651926,-162.80936,0.00027336,7]
[385344574,1757790651935,-1588.728436,0.00027336,7]
[385344576,1757790651945,-1588.728436,0.00027336,7]
[385344578,1757790651954,-1588.728436,0.00027336,7]
[385344580,1757790651963,-1588.728439,0.00027336,7]
[385344582,1757790651972,-195.927416,0.00027336,7]
[385344584,1757790651981,-195.927416,0.00027336,7]
[385344586,1757790651990,-195.927416,0.00027336,7]
[385344588,1757790651999,-195.927409,0.00027336,7]
[385344590,1757790652009,-151.0,0.00027336,7]
[385344592,1757790652018,-151.0,0.00027336,7]
[385344594,1757790652027,-151.0,0.00027336,7]
[385344596,1757790652036,-268.344712,0.00027336,7]
[385344598,1757790652045,-268.344712,0.00027336,7]
[385344600,1757790652054,-268.344712,0.00027336,7]
[385344602,1757790652063,-268.344703,0.00027336,7]
[385344604,1757790652073,-185.04949,0.00027336,7]
[385344606,1757790652081,-185.04949,0.00027336,7]
[385344608,1757790652091,-185.04949,0.00027336,7]
[385344610,1757790652100,-185.049491,0.00027336,7]
[385344612,1757790652109,-151.0,0.00027336,7]
[385344614,1757790652118,-151.0,0.00027336,7]
[385344616,1757790652127,-151.0,0.00027336,7]
[385344618,1757790652137,-151.0,0.00027336,7]
[385344620,1757790652146,-151.0,0.00027336,7]
[385344622,1757790652156,-16594.3585535,0.00027345,2]
[385344624,1757790652165,-22908.1429357,0.00027345,2]
[385344626,1757790652174,-16594.3585535,0.00027346,2]
[385344628,1757790652183,-68724.4288072,0.00027346,2]
[385344630,1757790652192,-151.0,0.00027346,7]
[385344632,1757790652201,-1000.0,0.00027355,2]
[385344634,1757790652210,-1000.0,0.00027355,2]
[385344636,1757790652219,-1000.0,0.00027355,2]
[385344638,1757790652228,-1000.0,0.00027355,2]
[385344640,1757790652238,-1000.0,0.00027355,2]
[385344642,1757790652247,-1000.0,0.00027355,2]
[385344644,1757790652256,-1000.0,0.00027355,2]
[385344646,1757790652266,-1000.0,0.00027355,2]
[385344648,1757790652276,-1000.0,0.00027355,2]
[385344650,1757790652285,-1000.0,0.00027355,2]
[385344652,1757790652294,-1116.67,0.00027355,2]
[385344654,1757790652304,-144660.57773433,0.00027356,2]
[385344656,1757790652314,-182.39760665,0.00027356,2]
[385344658,1757790652324,-8386.28535246,0.00027356,2]
[385344660,1757790652334,-140414.98793338,0.00027356,2]
[385344663,1757790652344,-255.447852,0.00027356,7]
[385344664,1757790652353,-68724.4288072,0.00027356,2]
[385344666,1757790652362,-91632.571743,0.00027357,2]
[385344668,1757790652372,-22908.1429357,0.00027366,2]
[385344670,1757790652383,-910.0,0.0002737,2]
[385344672,1757790652392,-150.0,0.0002737,2]
[385344674,1757790652402,-270.09915568,0.00027372,2]
[385344676,1757790652413,-500.0,0.00027373,2]
[385344678,1757790652431,-495.62858788,0.00027373,2]
[385344680,1757790652441,-500.0,0.00027373,2]
[385344682,1757790652451,-500.0,0.00027373,2]
[385344684,1757790652460,-500.0,0.00027373,2]
[385344686,1757790652469,-500.0,0.00027373,2]
[385344688,1757790652479,-500.0,0.00027373,2]
[385344690,1757790652488,-344.24402195,0.00027373,2]
[385344692,1757790652497,-418.38888821,0.00027375,2]
[385344694,1757790652507,-68724.4288072,0.00027377,2]
[385344696,1757790652516,-492.53375448,0.00027377,2]